bitfinex/quotes_ETHUSD_20241103
["timestamp","ask_amount","ask_price","bid_price","bid_amount"]
[1730646130964,4.11461,2430.4,2429.9,5.02068098]
[1730646131167,0.8486,2430.5,2430.0,4.11509]
[1730646131470,0.8486,2430.5,2430.0,8.23022]
[1730646131781,0.8486,2430.5,2430.0,4.11509]
[1730646131978,0.192,2430.7,2430.0,4.11509]
[1730646131979,1.0406,2430.7,2430.1,4.1149]
[1730646132202,1.0406,2430.7,2430.3,4.11468]
[1730646132372,5.15464,2430.7,2430.3,4.11468]
[1730646132571,5.15464,2430.7,2430.2,1.30161958]
[1730646133323,4.11474,2430.3,2429.9,0.823082]
[1730646133470,4.11476,2430.3,2429.9,0.823082]
[1730646133671,8.22962,2430.3,2429.9,0.823082]
[1730646133901,8.22958,2430.3,2429.9,0.823082]
[1730646134079,4.11476,2430.3,2429.9,0.823082]
[1730646134415,0.8486,2430.6,2429.9,0.823082]
[1730646134586,4.11475,2430.3,2429.9,0.823082]
[1730646134973,4.11475,2430.3,2430.0,0.4938552]
[1730646135515,4.11454,2430.4,2430.0,0.4938552]
[1730646135682,4.11481,2430.3,2430.0,0.4938552]
[1730646136004,4.11481,2430.3,2429.8,4.11547]
[1730646136206,4.11449,2430.5,2429.9,4.11538]
[1730646136411,4.11449,2430.5,2430.0,4.11509]
[1730646136777,4.11449,2430.5,2429.7,4.11563]
[1730646136970,4.11473,2430.3,2429.8,4.11555]
[1730646137173,4.11473,2430.3,2429.9,0.823118]
[1730646137404,4.11449,2430.5,2429.9,4.938498]
[1730646137611,4.11473,2430.3,2429.9,0.823118]
[1730646137779,4.11449,2430.5,2429.9,0.823118]
[1730646137980,4.11472,2430.3,2429.8,8.3133313]
[1730646138194,4.11472,2430.3,2429.6,0.8819]
[1730646138195,4.11449,2430.5,2430.0,4.11515]
[1730646138396,0.8486,2430.6,2430.0,4.11515]
[1730646138397,4.9629,2430.6,2430.1,0.8657]
[1730646138636,4.11482,2430.3,2430.1,0.8657]
[1730646138798,4.11461,2430.4,2429.9,4.11538]
[1730646139092,5.8486,2430.6,2430.0,4.11521]
[1730646139093,4.11437,2430.5,2430.0,4.11521]
[1730646139293,4.11437,2430.5,2430.0,8.23042]
[1730646139591,0.192,2430.7,2430.1,4.11492]
[1730646139802,4.1143,2430.6,2430.2,0.8657]
[1730646140028,4.11429,2430.6,2430.2,0.8657]
[1730646140201,4.11429,2430.6,2430.2,1.363762]
[1730646140809,1.0329,2430.7,2430.2,5.478522]
[1730646141042,4.11422,2430.6,2430.2,5.478522]
[1730646141251,4.11422,2430.6,2430.2,1.363762]
[1730646141402,4.11422,2430.6,2430.2,0.8657]
[1730646142246,1.0329,2430.7,2430.2,4.98048]
[1730646142247,5.14702,2430.7,2430.2,4.98048]
[1730646142554,4.11428,2430.6,2430.2,0.8657]
[1730646142841,4.11531,2430.0,2429.8,0.8657]
[1730646143000,4.11531,2430.0,2429.5,0.8657]
[1730646143196,0.8409,2430.2,2429.5,0.909827]
[1730646143197,4.11574,2429.7,2429.5,0.909827]
[1730646143421,4.11557,2429.8,2429.2,4.11658]
[1730646143422,4.11557,2429.8,2429.2,4.98228]
[1730646143626,4.11525,2430.0,2429.5,4.11597]
[1730646144253,4.11525,2430.0,2429.5,8.23194]
[1730646144406,4.11505,2430.1,2429.5,4.11597]
[1730646144750,4.1154,2429.9,2429.3,4.1163]
[1730646145052,4.11476,2430.3,2429.3,0.8657]
[1730646145053,4.11574,2429.7,2429.3,0.8657]
[1730646145250,4.95656,2429.8,2429.3,0.8657]
[1730646145251,9.07224,2429.8,2429.3,4.98209]
[1730646145454,4.95656,2429.8,2429.3,4.98209]
[1730646145599,0.01,2430.4,2429.5,4.11597]
[1730646145600,0.8409,2430.4,2429.5,4.11597]
[1730646145800,4.11528,2430.0,2429.6,0.498167]
[1730646146955,4.11528,2430.0,2429.6,4.614057]
[1730646147150,4.11444,2430.5,2429.7,0.08231204]
[1730646147314,0.192,2430.7,2429.8,4.98125]
[1730646147315,4.11432,2430.6,2429.8,4.98125]
[1730646147642,4.11432,2430.6,2429.9,4.613405]
[1730646147798,4.11451,2430.5,2429.9,4.613405]
[1730646148259,8.22868,2430.6,2430.0,4.19742374]
[1730646148437,4.11448,2430.5,2430.0,4.11513]
[1730646148610,4.11535,2430.0,2429.5,0.8657]
[1730646148835,4.11535,2430.0,2429.5,1.363895]
[1730646148836,4.1156,2429.8,2429.5,1.363895]
[1730646149005,0.8409,2430.0,2429.5,1.363895]
[1730646149006,4.11539,2429.9,2429.5,1.363895]
[1730646149911,4.11539,2429.9,2429.4,4.11615]
[1730646150346,3.0,2430.2,2429.6,4.11584]
[1730646150648,4.11509,2430.1,2429.6,4.1159]
[1730646150938,4.11523,2430.0,2429.5,4.11605]
[1730646151144,7.11502,2430.2,2429.6,4.1158]
[1730646151145,4.11506,2430.1,2429.6,4.1158]
[1730646151311,4.11532,2430.0,2429.7,0.823179]
[1730646152433,0.8135,2430.3,2429.3,4.97888]
[1730646152737,4.11554,2429.9,2429.4,4.11616]
[1730646153338,4.11575,2429.7,2429.3,0.8626]
[1730646153552,4.11575,2429.7,2429.1,4.11668]
[1730646153553,4.11575,2429.7,2429.1,0.8626]
[1730646153768,4.11575,2429.7,2429.2,4.11657]
[1730646153956,4.1161,2429.5,2429.2,0.91782459]
[1730646154162,4.1161,2429.5,2429.1,0.8626]
[1730646154790,4.1161,2429.5,2428.8,4.11712]
[1730646154791,4.11624,2429.4,2428.8,8.23425]
[1730646154942,0.8135,2429.4,2428.9,4.11704]
[1730646155145,4.92976,2429.4,2428.9,4.11697]
[1730646155480,4.92976,2429.4,2429.0,4.11691]
[1730646155670,4.92976,2429.4,2429.0,4.6618426]
[1730646156173,4.11608,2429.5,2429.1,4.11674]
[1730646156485,4.11615,2429.5,2429.0,4.6618426]
[1730646156694,4.11592,2429.6,2429.1,4.11673]
[1730646157082,4.11592,2429.6,2429.2,4.97917]
[1730646157280,4.11592,2429.6,2429.2,1.83493419]
[1730646157589,0.8135,2429.7,2429.2,1.83493419]
[1730646157590,0.8135,2429.7,2429.3,4.11629]
[1730646157797,4.11542,2429.9,2429.4,4.11613]
[1730646157970,4.92884,2430.0,2429.5,4.11599]
[1730646158166,4.92884,2430.0,2429.4,4.11613]
[1730646158373,4.92884,2430.0,2429.5,0.411613]
[1730646158374,4.11539,2429.9,2429.5,0.411613]
[1730646158756,4.1156,2429.8,2429.5,0.411613]
[1730646159605,8.23092,2429.9,2429.5,0.411613]
[1730646159816,4.11539,2429.9,2429.5,0.411613]
[1730646160526,4.11588,2429.7,2429.3,0.08231906]
[1730646160668,4.11636,2429.4,2428.8,0.8626]
[1730646160871,0.8135,2429.7,2429.1,4.11674]
[1730646160872,4.11602,2429.6,2429.1,4.11674]
[1730646161092,4.11567,2429.8,2429.3,4.11633]
[1730646161272,4.92883,2430.0,2429.5,4.11599]
[1730646161589,4.11507,2430.1,2429.6,4.11589]
[1730646161979,4.11505,2430.1,2429.6,4.11589]
[1730646162414,4.11499,2430.2,2429.6,4.11589]
[1730646162737,4.11488,2430.2,2429.4,0.50612616]
[1730646162879,5.85034638,2430.1,2429.2,0.8626]
[1730646163082,4.11568,2429.8,2429.3,4.62252893]
[1730646163716,4.11573,2429.7,2429.3,0.50615893]
[1730646164819,5.85034638,2429.8,2428.9,0.8626]
[1730646165125,8.23206,2429.6,2429.0,4.11678]
[1730646165479,4.11612,2429.5,2429.0,4.11678]
[1730646165828,4.11626,2429.4,2429.0,4.11678]
[1730646166010,4.11643,2429.3,2428.9,0.8626]
[1730646166180,4.98926,2429.4,2428.9,1.360574]
[1730646166375,8.23329,2429.2,2428.9,0.8626]
[1730646166577,4.98926,2429.4,2428.6,0.8195]
[1730646166885,4.98926,2429.4,2428.4,8.23567]
[1730646166886,4.11716,2428.9,2428.4,9.05517]
[1730646167128,4.11716,2428.9,2428.5,4.11773]
[1730646167627,4.11675,2429.1,2428.4,0.8195]
[1730646167920,4.11773,2428.6,2428.2,0.8195]
[1730646168122,4.1175,2428.7,2428.2,1.725141]
[1730646168274,8.23509,2428.7,2428.2,5.843411]
[1730646168483,8.23509,2428.7,2428.2,1.725141]
[1730646168484,4.1175,2428.7,2428.2,1.725141]
[1730646168678,4.11793,2428.5,2428.2,0.8195]
[1730646168977,4.11793,2428.5,2427.9,4.11866]
[1730646168978,4.11793,2428.4,2427.9,0.8195]
[1730646169269,4.99063,2428.6,2427.9,4.93819]
[1730646169583,4.99063,2428.6,2427.9,0.8195]
[1730646169584,0.873,2428.6,2427.9,0.8195]
[1730646169782,4.1181,2428.4,2427.9,0.8195]
[1730646170078,4.11802,2428.4,2427.9,5.431984]
[1730646170523,8.23611,2428.4,2427.9,1.313334]
[1730646170819,4.11811,2428.3,2427.9,1.313334]
[1730646170977,4.11802,2428.4,2427.9,5.432094]
[1730646171190,8.23611,2428.4,2427.9,5.432094]
[1730646171513,4.11802,2428.4,2427.9,1.313334]
[1730646171715,8.23607,2428.4,2427.9,5.432114]
[1730646171915,4.1181,2428.3,2427.9,1.313334]
[1730646172130,0.873,2428.6,2427.6,8.23834]
[1730646172131,8.23669,2428.2,2427.6,8.23834]
[1730646172414,4.11871,2428.0,2427.7,0.8195]
[1730646172876,4.11871,2428.0,2427.5,5.02134051]
[1730646173080,4.11871,2428.0,2427.6,4.11929]
[1730646173719,4.99135,2428.2,2427.6,4.11914]
[1730646173915,4.11804,2428.4,2427.8,4.11887]
[1730646174107,4.99101,2428.4,2427.9,4.11877]
[1730646174309,4.11801,2428.4,2428.0,0.8195]
[1730646174660,9.1177,2428.6,2428.0,0.8195]
[1730646174661,4.11811,2428.3,2428.0,0.8195]
[1730646174829,4.11863,2428.0,2427.7,0.8195]
[1730646174981,4.11863,2428.0,2427.5,0.8195]
[1730646175318,4.11863,2428.0,2427.5,5.432761]
[1730646175627,4.11863,2428.0,2427.5,5.432831]
[1730646176509,4.11863,2428.0,2427.5,1.39579279]
[1730646176832,4.11838,2428.2,2427.6,4.11918]
[1730646177223,4.11847,2428.1,2427.6,4.11918]
[1730646177428,4.11847,2428.1,2427.6,5.0743821]
[1730646177996,4.11829,2428.2,2427.7,4.119]
[1730646178230,4.11847,2428.1,2427.6,0.9552021]
[1730646178409,4.11847,2428.1,2427.5,5.432801]
[1730646178410,4.11872,2428.0,2427.5,5.432801]
[1730646178615,4.11872,2428.0,2427.5,1.313411]
[1730646178815,4.11882,2427.9,2427.5,1.313411]
[1730646179025,4.11882,2427.9,2427.5,0.8195]
[1730646179026,4.11902,2427.8,2427.5,0.8195]
[1730646179342,4.11902,2427.8,2427.2,4.11985]
[1730646179343,4.11912,2427.7,2427.2,4.11996]
[1730646179513,4.1193,2427.6,2427.1,4.93963]
[1730646179837,4.1193,2427.6,2427.1,0.8195]
[1730646179838,4.11949,2427.5,2427.1,0.8195]
[1730646180042,4.1193,2427.6,2427.1,4.93955]
[1730646180404,8.2387,2427.6,2427.1,4.93955]
[1730646180610,4.11954,2427.5,2427.1,0.8195]
[1730646180916,4.11922,2427.7,2427.1,0.8195]
[1730646181116,0.873,2427.8,2427.4,4.1196]
[1730646181426,4.11888,2427.9,2427.5,0.8595]
[1730646181803,3.8396,2428.1,2427.6,4.11927]
[1730646181804,7.95816,2428.1,2427.6,4.11927]
[1730646182033,4.11856,2428.1,2427.6,4.11927]
[1730646182540,4.11836,2428.2,2427.7,4.11908]
[1730646182697,3.8396,2428.4,2427.8,4.11889]
[1730646182698,0.8396,2428.4,2427.8,4.11889]
[1730646182903,0.8396,2428.4,2427.9,0.8595]
[1730646182904,4.11833,2428.2,2427.9,0.8595]
[1730646183128,4.11833,2428.2,2427.7,0.8595]
[1730646183129,4.11827,2428.2,2427.7,0.8595]
[1730646183329,0.8396,2428.4,2427.7,0.8595]
[1730646183330,4.95757,2428.4,2427.7,0.8595]
[1730646183662,4.95757,2428.4,2427.2,0.8595]
[1730646183663,4.1193,2427.6,2427.2,0.8595]
[1730646183811,4.1193,2427.6,2427.2,4.97944]
[1730646184005,8.23814,2427.8,2427.2,0.8595]
[1730646184327,4.11917,2427.7,2427.2,4.97934]
[1730646184516,4.11938,2427.6,2427.2,0.8595]
[1730646184717,4.11938,2427.6,2427.2,4.97946]
[1730646185043,4.11907,2427.8,2427.3,4.11972]
[1730646185248,4.95832,2428.0,2427.4,4.11961]
[1730646185249,9.07707,2428.0,2427.4,4.11961]
[1730646185416,4.11879,2427.9,2427.5,4.11946]
[1730646185745,4.95832,2428.0,2427.6,0.8595]
[1730646185746,4.11873,2428.0,2427.6,0.8595]
[1730646185931,8.23742,2428.0,2427.6,0.8595]
[1730646186135,4.11938,2427.6,2427.3,0.8595]
[1730646186518,4.11938,2427.6,2427.1,4.12004]
[1730646186726,4.11938,2427.6,2427.1,1.683542]
[1730646186965,4.11938,2427.6,2427.1,4.97956]
[1730646187243,0.8396,2427.9,2427.1,0.8595]
[1730646187244,4.11946,2427.5,2427.1,0.8595]
[1730646187452,5.8396,2427.9,2427.1,0.8595]
[1730646187453,4.11941,2427.6,2427.1,0.8595]
[1730646187604,4.11941,2427.6,2427.1,4.97963]
[1730646188005,4.11941,2427.6,2427.1,4.97955]
[1730646188407,4.11941,2427.6,2427.1,9.597535]
[1730646188683,4.11941,2427.6,2427.1,5.477485]
[1730646188809,4.11905,2427.8,2427.3,4.11978]
[1730646189020,4.11879,2427.9,2427.4,4.1195]
[1730646189213,4.11931,2427.6,2427.3,0.8595]
[1730646189723,4.11906,2427.8,2427.3,5.5269415]
[1730646189933,4.11906,2427.8,2427.4,4.1196]
[1730646190134,4.1188,2427.9,2427.4,4.1196]
[1730646190524,4.1188,2427.9,2427.3,1.4072315]
[1730646190525,8.23805,2427.8,2427.3,5.5270115]
[1730646190856,4.11895,2427.8,2427.4,4.11962]
[1730646191025,4.11895,2427.8,2427.4,5.08429015]
[1730646191627,3.8396,2428.1,2427.3,0.8595]
[1730646191628,4.1192,2427.7,2427.3,0.8595]
[1730646191806,4.11954,2427.5,2427.1,0.8595]
[1730646192022,8.23914,2427.5,2427.1,0.8595]
[1730646192211,4.11954,2427.5,2427.1,0.8595]
[1730646192411,8.23912,2427.5,2427.1,0.8595]
[1730646192677,4.1193,2427.6,2427.1,5.47759]
[1730646192961,4.11948,2427.5,2427.1,5.47759]
[1730646193251,4.1193,2427.6,2427.1,5.47759]
[1730646193546,0.8396,2427.7,2427.1,1.35748]
[1730646193722,0.8396,2427.7,2426.8,4.98005]
[1730646193723,4.11982,2427.3,2426.8,4.98005]
[1730646193923,4.11982,2427.3,2426.8,0.8595]
[1730646193924,4.12006,2427.2,2426.8,0.8595]
[1730646194458,4.11979,2427.4,2426.9,4.12043]
[1730646194629,4.11979,2427.4,2426.9,5.0387278]
[1730646195012,4.11929,2427.6,2427.0,4.12028]
[1730646195244,4.11949,2427.5,2427.0,4.12028]
[1730646196276,4.11949,2427.5,2426.9,5.0387278]
[1730646196277,4.11964,2427.4,2426.9,0.9182978]
[1730646196414,4.11948,2427.5,2426.9,4.12046]
[1730646196616,4.11948,2427.5,2427.0,4.12023]
[1730646196849,4.11942,2427.6,2427.1,4.12012]
[1730646196850,4.1193,2427.6,2427.1,4.12012]
[1730646197154,5.0,2427.9,2427.4,4.11954]
[1730646197155,4.11878,2427.9,2427.4,4.11954]
[1730646197364,4.11886,2427.9,2427.6,0.8679]
[1730646197519,4.11867,2428.0,2427.6,4.98717]
[1730646197719,8.23741,2428.0,2427.6,0.8679]
[1730646197947,4.11906,2427.8,2427.6,0.8679]
[1730646198186,4.11906,2427.8,2427.3,4.98769]
[1730646198374,4.11906,2427.8,2427.4,0.91075]
[1730646198375,4.11925,2427.7,2427.4,0.91075]
[1730646198711,4.11906,2427.8,2427.4,0.91075]
[1730646198916,4.11872,2428.0,2427.5,4.11946]
[1730646199117,8.23749,2428.0,2427.5,4.11946]
[1730646199347,5.0,2428.2,2427.3,0.8679]
[1730646199532,4.11932,2427.6,2427.3,0.8679]
[1730646199955,4.11965,2427.4,2427.1,0.8679]
[1730646200240,4.11988,2427.3,2426.9,0.8679]
[1730646200450,10.00456,2427.8,2426.9,0.8679]
[1730646200451,4.12022,2427.1,2426.9,0.8679]
[1730646200765,4.12001,2427.2,2426.7,4.12074]
[1730646200766,4.11999,2427.2,2426.7,4.12074]
[1730646200998,5.00551,2427.3,2426.6,0.8679]
[1730646200999,4.12022,2427.1,2426.6,0.8679]
[1730646201164,4.12022,2427.1,2426.6,4.98887]
[1730646201353,8.24048,2427.1,2426.6,4.98887]
[1730646201780,4.11999,2427.2,2426.7,4.2032329]
[1730646201985,4.11999,2427.2,2426.8,4.12063]
[1730646202155,4.11965,2427.4,2426.9,4.1204]
[1730646202365,4.11983,2427.3,2427.0,0.8679]
[1730646202594,4.12014,2427.1,2426.7,4.98869]
[1730646202889,0.8856,2427.6,2426.9,4.1204]
[1730646203094,4.11963,2427.4,2426.9,4.1204]
[1730646203387,4.11963,2427.4,2427.0,4.1203]
[1730646203748,3.0,2427.4,2427.0,4.1203]
[1730646204556,5.0,2427.8,2427.2,4.11996]
[1730646204557,7.1192,2427.7,2427.2,4.11996]
[1730646204757,4.11941,2427.6,2427.1,4.98802]
[1730646205052,4.11941,2427.6,2427.2,4.11997]
[1730646205319,5.8856,2427.8,2427.2,4.11985]
[1730646205320,4.11911,2427.8,2427.2,4.11985]
[1730646205452,4.11911,2427.8,2427.3,4.11972]
[1730646205453,4.11895,2427.8,2427.3,4.11972]
[1730646205648,4.11914,2427.7,2427.1,5.898762]
[1730646205852,4.11942,2427.6,2427.1,5.898762]
[1730646206398,4.11914,2427.7,2427.2,4.7098362]
[1730646206553,4.11931,2427.6,2427.2,0.5898762]
[1730646207178,4.11931,2427.6,2427.2,4.7098162]
[1730646207386,4.11913,2427.7,2427.2,4.7098162]
[1730646207764,8.23834,2427.7,2427.2,4.7098162]
[1730646207970,4.11913,2427.7,2427.3,0.96977362]
[1730646208588,8.23787,2427.9,2427.4,4.11959]
[1730646208785,4.11896,2427.8,2427.4,4.11959]
[1730646208961,4.11896,2427.8,2427.5,0.8679]
[1730646209162,4.1192,2427.7,2427.5,0.8679]
[1730646209378,4.11912,2427.7,2427.5,0.8679]
[1730646209692,4.11896,2427.8,2427.5,0.8679]
[1730646210104,8.00433,2428.0,2427.5,5.58303936]
[1730646210105,4.1187,2428.0,2427.5,5.58303936]
[1730646210454,4.1187,2428.0,2427.6,4.11927]
[1730646210658,4.1187,2428.0,2427.5,5.58303936]
[1730646210901,5.0,2428.1,2427.5,5.58303936]
[1730646210902,5.0,2428.1,2427.6,4.11925]
[1730646211071,4.11819,2428.3,2427.8,4.11883]
[1730646211273,4.1181,2428.3,2427.9,0.8903]
[1730646211662,4.96693381,2428.7,2427.9,0.8903]
[1730646211984,4.1182,2428.3,2427.9,0.8903]
[1730646212634,7.11799,2428.4,2427.9,5.509883]
[1730646212795,4.11778,2428.5,2428.0,4.1186]
[1730646213211,4.11778,2428.5,2428.0,4.11861]
[1730646213563,4.11804,2428.4,2427.9,1.391213]
[1730646213802,4.11819,2428.3,2427.9,1.391213]
[1730646214308,4.11759,2428.6,2428.0,0.8903]
[1730646214489,4.11803,2428.4,2428.0,0.8903]
[1730646214703,5.84941381,2428.8,2428.1,4.11841]
[1730646214704,9.96676381,2428.8,2428.1,4.11841]
[1730646214904,9.96676381,2428.8,2428.3,5.00838]
[1730646214905,4.11735,2428.8,2428.3,5.00838]
[1730646215297,8.2347,2428.8,2428.3,5.00838]
[1730646215471,1.73281381,2429.0,2428.3,0.8903]
[1730646215674,8.23527,2428.6,2428.3,0.8903]
[1730646215906,4.11787,2428.5,2428.0,1.391199]
[1730646216104,8.23578,2428.5,2428.0,1.391199]
[1730646216383,4.11761,2428.6,2428.1,5.0812949]
[1730646216617,4.11763,2428.6,2428.1,5.0812949]
[1730646216927,4.11778,2428.5,2428.1,5.0812949]
[1730646217220,4.11754,2428.7,2428.0,1.391199]
[1730646217221,4.96683381,2428.7,2428.0,0.8903]
[1730646217417,4.11782,2428.5,2428.0,0.8903]
[1730646217717,4.11802,2428.4,2428.0,0.8903]
[1730646217873,4.1181,2428.3,2428.0,0.8903]
[1730646218224,8.23574,2428.5,2428.0,0.8903]
[1730646218519,4.1181,2428.4,2428.0,0.8903]
[1730646218688,4.11782,2428.5,2428.0,5.0089]
[1730646218893,4.11782,2428.5,2428.1,4.1184]
[1730646219185,4.11782,2428.5,2428.0,5.92983594]
[1730646219412,4.11782,2428.5,2428.1,4.1184]
[1730646219753,4.11782,2428.5,2428.1,4.11844]
[1730646220073,3.84941381,2428.7,2428.0,0.8903]
[1730646220424,4.11784,2428.5,2428.0,0.8903]
[1730646220708,4.11784,2428.5,2428.0,5.00879]
[1730646221068,4.11795,2428.4,2428.0,0.8903]
[1730646221468,4.96700381,2428.6,2428.0,0.8903]
[1730646221672,8.23639,2428.3,2428.0,0.8903]
[1730646222132,0.8834,2428.4,2427.7,0.8903]
[1730646222423,0.8834,2428.4,2427.7,5.0093]
[1730646222424,4.11846,2428.1,2427.7,5.0093]
[1730646222569,4.11882,2427.9,2427.7,0.8903]
[1730646222769,4.11839,2428.2,2427.7,0.8903]
[1730646223017,4.11846,2428.1,2427.7,0.8903]
[1730646223406,4.73281381,2428.4,2427.8,4.11884]
[1730646223407,4.11818,2428.3,2427.8,4.11884]
[1730646223624,4.73281381,2428.4,2427.7,1.39948308]
[1730646223625,1.73281381,2428.4,2427.7,5.51852308]
[1730646223783,3.8834,2428.4,2427.7,5.51852308]
[1730646224014,4.11803,2428.4,2427.7,5.51848308]
[1730646224190,4.11803,2428.4,2427.8,4.11895]
[1730646224384,4.11803,2428.4,2427.8,5.08269331]
[1730646224621,4.11768,2428.6,2428.1,4.11834]
[1730646224831,4.96674381,2428.8,2428.3,4.11801]
[1730646225061,4.11745,2428.7,2428.3,4.11801]
[1730646225198,4.11745,2428.7,2428.2,0.8903]
[1730646225199,4.11745,2428.7,2428.2,5.00856]
[1730646225686,4.96674381,2428.8,2428.3,4.11803]
[1730646225887,9.08409381,2428.8,2428.3,4.11803]
[1730646226123,8.23468,2428.8,2428.3,4.11803]
[1730646226323,4.96674381,2428.8,2428.3,4.11803]
[1730646226527,4.96674381,2428.8,2428.2,0.8903]
[1730646226692,9.08414381,2428.8,2428.3,4.11808]
[1730646226887,4.11746,2428.7,2428.3,4.11808]
[1730646227431,4.11733,2428.8,2428.3,4.11801]
[1730646227597,4.11744,2428.7,2428.2,5.00855]
[1730646228729,8.23533,2428.6,2428.2,0.8903]
[1730646228933,4.11762,2428.6,2428.2,0.8903]
[1730646229139,8.23536,2428.6,2428.2,0.8903]
[1730646229439,4.11762,2428.6,2428.2,5.00856]
[1730646229600,4.1181,2428.3,2428.0,0.8574]
[1730646229809,4.11853,2428.1,2427.8,0.8574]
[1730646230018,4.11878,2427.9,2427.8,0.8574]
[1730646230330,0.8689,2427.9,2427.3,0.8574]
[1730646230551,4.11912,2427.7,2427.3,0.8574]
[1730646230833,9.9877,2427.9,2426.9,4.9778]
[1730646230834,4.11963,2427.4,2426.9,4.9778]
[1730646231500,4.12004,2427.2,2426.9,0.8574]
[1730646231728,4.12004,2427.2,2426.5,4.12104]
[1730646231729,4.12031,2427.0,2426.6,0.8574]
[1730646232195,8.2402,2427.2,2426.7,4.12081]
[1730646232413,4.12026,2427.1,2426.6,4.97838]
[1730646232611,4.12026,2427.1,2426.6,0.8574]
[1730646232819,4.12026,2427.1,2426.6,4.97839]
[1730646233541,4.11984,2427.3,2426.7,4.20309265]
[1730646233715,4.12031,2427.0,2426.6,1.767342]
[1730646233915,4.12031,2427.0,2426.6,0.8574]
[1730646234120,4.1205,2426.9,2426.6,0.8574]
[1730646234756,8.24077,2427.0,2426.6,0.8574]
[1730646235217,4.12031,2427.0,2426.6,0.8574]
[1730646236639,8.24074,2427.0,2426.6,0.8574]
[1730646236814,4.12031,2427.0,2426.6,0.8574]
[1730646237015,4.12048,2426.9,2426.6,0.8574]
[1730646237542,4.12048,2426.9,2426.2,0.8574]
[1730646237543,4.12103,2426.6,2426.2,0.8574]
[1730646238044,0.8689,2426.9,2426.0,5.0394811]
[1730646238045,4.12117,2426.5,2426.0,5.0394811]
[1730646238248,4.12117,2426.5,2426.0,0.9175311]
[1730646238588,4.1215,2426.3,2426.0,0.9175311]
[1730646238855,4.1216,2426.3,2426.0,0.0601311]
[1730646239042,4.12176,2426.2,2426.0,0.0601311]
[1730646239227,4.1216,2426.3,2426.0,0.0601311]
[1730646239429,4.99016,2426.5,2426.0,0.0601311]
[1730646239730,4.12142,2426.4,2426.0,0.0601311]
[1730646240859,4.12159,2426.3,2426.0,0.0601311]
[1730646241018,4.12142,2426.4,2426.0,0.0601311]
[1730646241767,4.12109,2426.6,2426.0,4.1821311]
[1730646241768,8.24221,2426.6,2426.0,4.1821311]
[1730646241969,4.12109,2426.6,2426.0,4.1820511]
[1730646242148,4.12109,2426.6,2426.1,4.12172]
[1730646242320,4.12109,2426.6,2426.0,4.1820511]
[1730646242524,4.12077,2426.8,2426.3,0.8835]
[1730646242875,4.12077,2426.8,2426.0,0.0601311]
[1730646242876,4.12161,2426.3,2426.0,0.0601311]
[1730646243019,4.1215,2426.3,2426.0,0.0601311]
[1730646243223,4.12169,2426.2,2426.0,0.0601311]
[1730646244276,8.24351,2426.2,2426.0,0.0601311]
[1730646244442,4.12169,2426.2,2426.0,0.0601311]
[1730646244628,8.24349,2426.2,2426.0,0.0601311]
[1730646244836,4.12184,2426.1,2426.0,0.0601311]
[1730646245850,4.12169,2426.2,2426.0,0.0601311]
[1730646246440,9.97354,2426.4,2426.0,0.0601311]
[1730646246649,4.12158,2426.3,2426.0,0.0601311]
[1730646247181,5.8521,2426.4,2426.0,0.0601311]
[1730646247410,4.12182,2426.2,2426.0,0.0601311]
[1730646247629,4.12184,2426.1,2426.0,0.0601311]
[1730646248589,9.12184,2426.1,2426.0,0.0601311]
[1730646248972,12.12184,2426.1,2426.0,0.0601311]
[1730646249215,12.97394,2426.1,2426.0,0.0601311]
[1730646250187,12.97394,2426.1,2425.1,0.8835]
[1730646250188,4.97493,2425.6,2425.1,0.8835]
[1730646250517,4.12287,2425.5,2425.1,0.8835]
[1730646250928,8.24582,2425.5,2425.1,0.8835]
[1730646251135,4.12287,2425.5,2425.1,0.8835]
[1730646251617,0.8521,2425.6,2424.9,5.01937641]
[1730646251618,8.24635,2425.4,2424.9,5.01937641]
[1730646251929,8.24635,2425.4,2424.9,0.89550641]
[1730646251930,4.12329,2425.3,2424.9,0.89550641]
[1730646252098,4.12316,2425.4,2424.9,0.89550641]
[1730646252099,4.12354,2425.1,2424.9,0.01200641]
[1730646252607,7.12371,2425.0,2424.9,0.01200641]
[1730646252774,7.12371,2425.0,2424.8,0.0601311]
[1730646252775,4.12388,2424.9,2424.8,0.0601311]
[1730646253428,7.12388,2424.9,2424.8,0.0601311]
[1730646253720,12.97598,2424.9,2424.8,0.0601311]
[1730646256541,13.52598,2424.9,2424.8,0.0601311]
[1730646257914,4.12584,2423.8,2423.6,0.0601311]
[1730646258120,4.12592,2423.7,2423.6,0.0601311]
[1730646258634,4.12592,2423.7,2423.3,0.85677444]
[1730646258635,4.96714,2423.7,2423.3,0.85677444]
[1730646258836,4.96714,2423.7,2423.0,4.12709]
[1730646258837,4.12631,2423.5,2423.0,4.12709]
[1730646259053,4.12631,2423.5,2422.9,4.77311083]
[1730646259189,4.12631,2423.5,2422.7,4.13153]
[1730646259386,4.12645,2423.4,2422.8,4.12745]
[1730646260105,4.12645,2423.4,2422.9,4.12725]
[1730646260636,4.12637,2423.5,2422.9,4.12719]
[1730646260923,4.12644,2423.4,2422.9,4.12719]
[1730646261946,5.0,2423.4,2422.8,0.8675]
[1730646262117,4.12706,2423.1,2422.7,0.004]
[1730646262317,4.96826,2423.1,2422.7,0.004]
[1730646262524,5.8412,2423.1,2422.7,0.004]
[1730646262831,4.12739,2422.9,2422.7,0.004]
[1730646262988,4.1272,2423.0,2422.7,0.004]
[1730646263614,4.1273,2422.9,2422.7,0.004]